bitfinex-derivatives/quotes_BTCF0:USTF0_20241015
["timestamp","ask_amount","ask_price","bid_price","bid_amount"]
[1729008785635,0.1027692,66389.0,66388.0,0.00225917]
[1729008785934,0.0274372,66389.0,66388.0,0.07759217]
[1729008786319,0.080332,66390.0,66389.0,0.075332]
[1729008786522,0.080332,66390.0,66389.0,0.075732]
[1729008787331,0.10573864,66390.0,66389.0,0.075732]
[1729008787529,0.10273864,66390.0,66389.0,0.0004]
[1729008788043,0.10373864,66390.0,66389.0,0.0144]
[1729008788231,0.10373864,66390.0,66389.0,0.089732]
[1729008788738,1.08028664,66390.0,66387.0,0.0004]
[1729008788926,1.08028664,66390.0,66375.0,0.04403384]
[1729008788927,0.075338,66384.0,66375.0,0.11938184]
[1729008789125,0.45188,66389.0,66367.0,0.04403384]
[1729008789126,0.07535,66373.0,66367.0,0.04403384]
[1729008789434,0.07535,66373.0,66372.0,0.07761102]
[1729008790032,0.075343,66380.0,66379.0,0.075342]
[1729008790227,0.3608,66382.0,66381.0,0.075341]
[1729008790533,0.43614,66382.0,66381.0,0.075741]
[1729008791032,0.46244393,66382.0,66381.0,0.075741]
[1729008791836,0.47644393,66382.0,66381.0,0.075741]
[1729008792926,0.49044393,66382.0,66381.0,0.075741]
[1729008793342,0.49044393,66382.0,66381.0,0.0004]
[1729008793540,0.47644393,66382.0,66381.0,0.0004]
[1729008793837,0.46444393,66382.0,66381.0,0.0004]
[1729008794043,0.46444393,66382.0,66381.0,0.075741]
[1729008795132,0.46444393,66382.0,66381.0,0.0004]
[1729008795443,0.46444393,66382.0,66381.0,0.075741]
[1729008796143,0.38910393,66382.0,66381.0,0.075741]
[1729008796945,0.46444393,66382.0,66381.0,0.075741]
[1729008797441,0.38910393,66382.0,66381.0,0.075741]
[1729008797654,0.0004,66388.0,66381.0,0.335741]
[1729008797838,0.0004,66388.0,66387.0,0.335734]
[1729008798347,0.02735487,66388.0,66387.0,0.335734]
[1729008798948,0.02735487,66388.0,66387.0,0.075734]
[1729008799339,0.10268787,66388.0,66387.0,0.075734]
[1729008799749,0.02735487,66388.0,66387.0,0.075734]
[1729008800049,0.02735487,66388.0,66387.0,0.334634]
[1729008800241,0.02835487,66388.0,66387.0,0.334634]
[1729008800548,0.02935487,66388.0,66387.0,0.075634]
[1729008801840,0.03535487,66388.0,66387.0,0.334634]
[1729008802051,0.03535487,66388.0,66387.0,0.074634]
[1729008802451,0.03935487,66388.0,66387.0,0.074634]
[1729008803251,0.03035487,66388.0,66387.0,0.075634]
[1729008803751,0.02935487,66388.0,66387.0,0.074634]
[1729008803950,0.02935487,66388.0,66387.0,0.334634]
[1729008803951,0.03435487,66388.0,66387.0,0.334634]
[1729008804254,0.00225974,66405.0,66402.0,0.075317]
[1729008804445,0.00225974,66405.0,66402.0,0.696517]
[1729008804644,0.00225974,66405.0,66402.0,2.196517]
[1729008804853,0.00225974,66405.0,66402.0,1.936517]
[1729008805653,0.696516,66403.0,66402.0,0.0004]
[1729008805843,0.335716,66403.0,66402.0,0.0004]
[1729008806154,0.335716,66403.0,66393.0,0.3608]
[1729008806155,1.387516,66403.0,66393.0,0.3608]
[1729008806445,0.07533,66391.0,66390.0,0.075331]
[1729008806648,0.07533,66391.0,66387.0,0.0014]
[1729008806649,0.26,66397.0,66387.0,0.0004]
[1729008806849,0.0714,66396.0,66387.0,0.0004]
[1729008807043,0.146725,66396.0,66388.0,0.075333]
[1729008807442,0.0714,66396.0,66393.0,0.014]
[1729008807648,0.3608,66398.0,66395.0,0.335325]
[1729008807855,0.3608,66398.0,66397.0,0.075723]
[1729008809055,0.436122,66398.0,66397.0,0.075723]
[1729008809442,0.436122,66398.0,66391.0,0.075328]
[1729008809443,0.07533,66392.0,66391.0,0.075328]
[1729008809641,1.41264,66398.0,66387.0,0.075734]
[1729008809642,0.075333,66388.0,66387.0,0.075734]
[1729008809847,0.075333,66388.0,66387.0,0.0004]
[1729008809848,0.335333,66388.0,66387.0,0.0004]
[1729008810239,0.335333,66388.0,66387.0,0.075734]
[1729008810841,0.408733,66388.0,66387.0,0.0004]
[1729008811058,0.415733,66388.0,66387.0,0.0014]
[1729008811242,0.415733,66388.0,66381.0,0.0004]
[1729008811243,1.468013,66388.0,66381.0,0.11982921]
[1729008811552,1.468013,66388.0,66381.0,0.0004]
[1729008811553,0.33534,66382.0,66381.0,0.0004]
[1729008812753,0.07534,66382.0,66381.0,0.075741]
[1729008813253,0.3608,66383.0,66381.0,0.0004]
[1729008813452,0.10170116,66388.0,66381.0,0.075741]
[1729008813453,0.014,66382.0,66381.0,0.075741]
[1729008813855,0.028,66382.0,66381.0,0.076741]
[1729008815254,0.10334,66382.0,66381.0,0.076741]
[1729008815453,0.08934,66382.0,66381.0,0.0014]
[1729008815753,0.08934,66382.0,66381.0,0.04565876]
[1729008815944,0.014,66382.0,66381.0,0.12099976]
[1729008816147,0.02730116,66388.0,66381.0,0.0004]
[1729008816348,0.02730116,66388.0,66387.0,0.335734]
[1729008817854,0.10363416,66388.0,66387.0,0.081734]
[1729008818046,0.02830116,66388.0,66387.0,0.081734]
[1729008818850,0.02930116,66388.0,66387.0,0.086734]
[1729008819454,0.02830116,66388.0,66387.0,0.080734]
[1729008819650,0.02930116,66388.0,66387.0,0.086734]
[1729008819855,0.02930116,66388.0,66387.0,0.14572102]
[1729008820153,0.02830116,66388.0,66387.0,0.080734]
[1729008820456,0.02930116,66388.0,66387.0,0.086734]
[1729008821460,0.10463416,66388.0,66387.0,0.086734]
[1729008822052,0.02930116,66388.0,66387.0,0.346734]
[1729008823658,0.02930116,66388.0,66387.0,0.086734]
[1729008823959,0.10463416,66388.0,66387.0,0.086734]
[1729008825464,0.10463416,66388.0,66387.0,0.1309747]
[1729008825651,0.02930116,66388.0,66387.0,0.086734]
[1729008825848,0.02930116,66388.0,66387.0,0.14571396]
[1729008826063,0.00226006,66396.0,66395.0,0.075325]
[1729008826263,0.02845671,66396.0,66395.0,0.39465089]
[1729008826453,0.02845671,66396.0,66395.0,0.335725]
[1729008827357,0.02945671,66396.0,66395.0,0.341725]
[1729008828461,0.03045671,66396.0,66395.0,0.347725]
[1729008828763,0.00426006,66396.0,66395.0,0.347725]
[1729008828964,0.0004,66398.0,66397.0,0.075323]
[1729008829870,0.0004,66398.0,66397.0,0.075723]
[1729008830566,0.0004,66398.0,66397.0,0.083723]
[1729008830764,0.0014,66398.0,66397.0,0.083723]
[1729008831164,0.0014,66398.0,66397.0,0.1572983]
[1729008831359,0.0024,66398.0,66397.0,0.16431478]
[1729008831558,0.0024,66398.0,66397.0,1.142563]
[1729008831865,0.0024,66398.0,66397.0,0.090723]
[1729008832369,0.02690511,66400.0,66399.0,0.075321]
[1729008832667,0.0008,66403.0,66402.0,0.075317]
[1729008833055,0.0008,66403.0,66399.0,0.697401]
[1729008833056,19.924683,66400.0,66399.0,0.697401]
[1729008833258,19.924683,66400.0,66399.0,0.696521]
[1729008833751,19.925683,66400.0,66399.0,0.705521]
[1729008833967,19.925683,66400.0,66399.0,0.965521]
[1729008834156,19.525683,66400.0,66399.0,2.09093893]
[1729008834364,19.525683,66400.0,66399.0,2.017321]
[1729008834555,19.526683,66400.0,66399.0,2.024321]
[1729008834761,19.296683,66400.0,66399.0,3.61128303]
[1729008835468,19.296683,66400.0,66399.0,3.63859538]
[1729008836171,19.309683,66400.0,66399.0,3.63359538]
[1729008836776,19.139683,66400.0,66399.0,3.63359538]
[1729008836970,19.152683,66400.0,66399.0,3.62459538]
[1729008837771,18.922683,66400.0,66399.0,3.6242612]
[1729008837954,18.922683,66400.0,66399.0,3.53763335]
[1729008838160,18.922683,66400.0,66399.0,3.62566459]
[1729008838360,18.922683,66400.0,66399.0,3.53753335]
[1729008839765,18.922683,66400.0,66399.0,2.67753335]
[1729008840066,18.922683,66400.0,66399.0,2.198421]
[1729008840265,18.922683,66400.0,66399.0,2.458421]
[1729008840464,18.922683,66400.0,66399.0,3.510221]
[1729008840465,18.752683,66400.0,66399.0,3.510221]
[1729008841161,18.752683,66400.0,66399.0,2.910221]
[1729008841370,18.752683,66400.0,66399.0,3.510221]
[1729008841570,18.752683,66400.0,66399.0,3.250221]
[1729008841778,18.522683,66400.0,66399.0,3.510221]
[1729008842665,17.89600645,66400.0,66399.0,3.73668101]
[1729008842865,17.43309111,66400.0,66399.0,3.82309264]
[1729008843065,17.04329411,66400.0,66399.0,3.82309264]
[1729008843361,16.46177411,66400.0,66399.0,4.3239506]
[1729008843559,12.46177411,66400.0,66399.0,4.42503888]
[1729008843764,12.46177411,66400.0,66399.0,4.22375891]
[1729008844269,12.14152611,66400.0,66399.0,4.22375891]
[1729008844464,11.82051111,66400.0,66399.0,4.22375891]
[1729008844659,8.55954211,66400.0,66399.0,2.72375891]
[1729008844861,8.276111,66400.0,66399.0,2.72375891]
[1729008845066,7.910205,66400.0,66399.0,2.82515061]
[1729008845268,7.74359329,66400.0,66399.0,2.82515061]
[1729008845570,7.31948129,66400.0,66399.0,2.82515061]
[1729008845768,7.29235419,66400.0,66399.0,2.72375891]
[1729008846162,3.41840265,66400.0,66399.0,3.46559891]
[1729008846367,0.0004,66419.0,66410.0,0.33209822]
[1729008846669,0.149658,66455.0,66399.0,3.12741532]
[1729008846670,0.3608,66454.0,66439.0,0.075275]
[1729008846879,0.0744,66464.0,66449.0,0.075264]
[1729008847074,0.0744,66464.0,66449.0,0.696464]
[1729008847262,0.3612,66462.0,66449.0,0.956464]
[1729008847461,0.0004,66462.0,66449.0,0.72403367]
[1729008847775,0.0004,66462.0,66449.0,0.36323367]
[1729008847977,0.3608,66458.0,66449.0,0.335664]
[1729008848371,0.07526,66453.0,66449.0,0.335664]
[1729008849075,0.0014,66450.0,66449.0,0.343664]
[1729008849269,0.3622,66450.0,66449.0,0.343664]
[1729008849766,1.7176,66450.0,66449.0,0.357664]
[1729008850473,0.0004,66462.0,66455.0,0.075257]
[1729008850681,0.0004,66462.0,66455.0,0.696457]
[1729008852173,0.0014,66456.0,66455.0,0.710457]
[1729008852774,0.0014,66456.0,66455.0,0.73791687]
[1729008852971,0.0004,66456.0,66455.0,0.73791687]
[1729008853180,0.0004,66456.0,66455.0,0.75191687]
[1729008853478,0.0004,66456.0,66455.0,0.49191687]
[1729008854482,0.0004,66462.0,66461.0,0.07525]
[1729008854669,0.0004,66462.0,66461.0,0.69645]
[1729008855169,0.0004,66462.0,66461.0,0.86430127]
[1729008855376,0.0004,66462.0,66461.0,1.09084079]
[1729008857378,0.0004,66462.0,66461.0,1.31594801]
[1729008857586,0.0008,66468.0,66467.0,0.075244]
[1729008857777,0.0008,66468.0,66467.0,0.696444]
[1729008858870,0.0008,66468.0,66467.0,0.450444]
[1729008859077,0.0008,66468.0,66467.0,0.089644]
[1729008859991,0.0008,66468.0,66467.0,0.103644]
[1729008860481,0.0008,66468.0,66467.0,0.464444]
[1729008860879,0.0008,66468.0,66467.0,0.461544]
[1729008864783,0.0008,66468.0,66467.0,0.721544]
[1729008867987,1.3562,66468.0,66467.0,0.631544]
[1729008868183,0.0008,66468.0,66467.0,0.631544]
[1729008869288,1.3562,66468.0,66467.0,0.631544]
[1729008870493,1.3562,66468.0,66467.0,0.629544]
[1729008872299,0.0008,66468.0,66467.0,0.629544]
[1729008878304,0.0008,66468.0,66467.0,0.799544]
[1729008878693,0.0008,66468.0,66467.0,0.873144]
[1729008878899,0.0008,66468.0,66467.0,0.703144]
[1729008879104,0.0008,66468.0,66467.0,0.629544]
[1729008880309,1.3562,66468.0,66467.0,0.629544]
[1729008880599,1.3562,66468.0,66467.0,0.68854074]
[1729008880806,1.3562,66468.0,66467.0,0.629544]
[1729008881007,1.3562,66468.0,66467.0,0.68854797]
[1729008881199,1.3562,66468.0,66467.0,0.629544]
[1729008881403,0.0008,66468.0,66467.0,0.629544]
[1729008883609,0.0008,66468.0,66467.0,0.70280758]
[1729008884104,0.0008,66468.0,66467.0,0.629544]
[1729008884302,0.0008,66468.0,66467.0,0.70280758]
[1729008885201,0.0008,66468.0,66467.0,0.629544]
[1729008886809,0.0008,66468.0,66467.0,0.602544]
[1729008887014,0.0008,66468.0,66467.0,0.603544]
[1729008887519,0.0008,66468.0,66467.0,0.602544]
[1729008887716,0.0008,66468.0,66467.0,0.603544]
[1729008889010,0.0008,66468.0,66467.0,0.6914603]
[1729008889207,0.0008,66468.0,66467.0,0.603544]
[1729008889411,0.0008,66468.0,66467.0,0.69219483]
[1729008889808,0.0008,66468.0,66467.0,0.86219483]
[1729008890310,0.0008,66468.0,66467.0,0.69219483]
[1729008890913,0.0008,66468.0,66467.0,0.603544]
[1729008891109,0.0008,66468.0,66467.0,0.69219483]
[1729008891513,0.0008,66468.0,66467.0,0.603544]
[1729008892219,0.0008,66468.0,66467.0,0.68736386]
[1729008892418,0.0008,66468.0,66467.0,0.603544]
[1729008893313,0.0008,66468.0,66467.0,0.68737398]
[1729008894013,0.0008,66468.0,66467.0,0.603544]
[1729008894320,1.3562,66468.0,66467.0,0.603544]
[1729008894727,0.0008,66468.0,66467.0,0.603544]
[1729008895110,0.0008,66468.0,66467.0,0.68769779]
[1729008895318,0.0008,66468.0,66467.0,0.603544]
[1729008897234,0.0008,66468.0,66467.0,0.68774953]
[1729008898416,1.3562,66468.0,66467.0,0.68774953]
[1729008899415,1.3562,66468.0,66467.0,0.15694953]
[1729008899416,3.1562,66468.0,66467.0,0.15694953]
[1729008899621,0.075249,66462.0,66461.0,0.3612]
[1729008899816,0.075249,66462.0,66452.0,0.3608]
[1729008899817,0.075259,66454.0,66452.0,0.3608]
[1729008900017,1.25201751,66453.0,66452.0,0.436061]
[1729008900326,2.9482085,66453.0,66452.0,0.606061]
[1729008900923,0.3612,66462.0,66452.0,0.606061]
[1729008900924,0.3612,66462.0,66455.0,0.075257]
[1729008901115,0.3612,66462.0,66461.0,0.07525]
[1729008901116,2.05739099,66462.0,66461.0,0.07525]
[1729008901318,2.05739099,66462.0,66461.0,0.07565]
[1729008901517,0.3612,66462.0,66461.0,0.07565]
[1729008901715,0.0012,66468.0,66461.0,0.5312]
[1729008902029,0.0012,66468.0,66467.0,0.606444]
[1729008902521,0.0012,66468.0,66467.0,0.7006048]
[1729008902723,0.0012,66468.0,66467.0,0.5306048]
[1729008903327,0.0012,66468.0,66467.0,0.7006048]
[1729008903519,0.0012,66468.0,66467.0,0.71564019]
[1729008904023,0.0142,66468.0,66467.0,0.54764019]
[1729008904221,0.0142,66468.0,66467.0,0.83501216]
[1729008904418,0.0142,66468.0,66467.0,0.71764019]
[1729008905722,0.0142,66468.0,66467.0,0.54726788]
[1729008905926,0.0142,66468.0,66467.0,0.66463985]
[1729008906428,0.0072,66468.0,66467.0,0.54726788]
[1729008906826,0.0072,66468.0,66467.0,0.55487863]
[1729008907624,0.0072,66468.0,66467.0,0.46103761]
[1729008909125,2.5858085,66468.0,66467.0,0.09267939]
[1729008909627,2.5858085,66468.0,66467.0,0.17397874]
[1729008909825,2.5858085,66468.0,66467.0,0.09267939]
[1729008910018,2.5858085,66468.0,66467.0,0.17398457]
[1729008910225,2.5858085,66468.0,66467.0,0.09267939]
[1729008911029,2.5858085,66468.0,66467.0,0.45347939]
[1729008911327,2.5858085,66468.0,66467.0,0.53493698]
[1729008911938,2.5858085,66468.0,66461.0,0.38780546]
[1729008911939,3.1798085,66468.0,66461.0,0.3612]
[1729008912234,0.075254,66458.0,66445.0,0.075267]
[1729008912528,1.00559751,66446.0,66445.0,0.08291302]
[1729008912733,1.00559751,66446.0,66445.0,0.075269]
[1729008913034,2.3321885,66446.0,66445.0,0.245269]
[1729008913331,2.3321885,66446.0,66445.0,0.17]
[1729008913529,2.3321885,66446.0,66445.0,0.001]
[1729008913721,2.9321885,66446.0,66445.0,0.001]
[1729008914125,2.9321885,66446.0,66445.0,0.002]
[1729008914323,2.3321885,66446.0,66445.0,0.172]
[1729008914928,2.3321885,66446.0,66445.0,0.247269]
[1729008915826,2.3461885,66446.0,66445.0,0.247269]
[1729008916229,2.3461885,66446.0,66445.0,0.172]
[1729008916626,2.3461885,66446.0,66445.0,0.247269]
[1729008917425,2.3461885,66446.0,66445.0,0.172]
[1729008918043,2.3461885,66446.0,66445.0,0.002]
[1729008918527,2.3461885,66446.0,66445.0,0.172]
[1729008919241,2.3461885,66446.0,66441.0,0.00225735]
[1729008919242,0.075272,66442.0,66441.0,0.00225735]
[1729008919550,3.3069885,66446.0,66439.0,0.0004]
[1729008919551,0.17,66443.0,66439.0,0.0004]
[1729008919731,0.83559751,66434.0,66431.0,0.17]
[1729008919935,0.3608,66432.0,66431.0,0.17]
[1729008920236,1.19639751,66432.0,66431.0,0.17]
[1729008920433,1.83693481,66432.0,66431.0,0.245284]
[1729008921838,1.85093481,66432.0,66431.0,0.17]
[1729008922239,1.85093481,66432.0,66418.0,0.17]
[1729008922240,2.45093481,66432.0,66418.0,0.17]
[1729008922437,1.19639751,66419.0,66418.0,0.075299]
[1729008922637,1.0293373,66432.0,66431.0,0.075284]
[1729008922845,0.85439751,66432.0,66431.0,0.075684]
[1729008923139,0.3608,66438.0,66437.0,0.075278]
[1729008923345,0.0004,66440.0,66437.0,0.075278]
[1729008923346,0.3612,66440.0,66437.0,0.075678]
[1729008923544,0.0004,66450.0,66447.0,0.075266]
[1729008923751,0.3608,66455.0,66449.0,0.245664]
[1729008923752,0.3542,66455.0,66449.0,0.245664]
[1729008924041,0.4368,66467.0,66449.0,0.245664]
[1729008924042,0.53529751,66464.0,66463.0,0.075248]
[1729008924234,0.53547137,66464.0,66463.0,0.245648]
[1729008925044,1.17583481,66464.0,66463.0,0.075648]
[1729008925247,1.53663481,66464.0,66463.0,0.0004]
[1729008925630,1.55063481,66464.0,66463.0,0.0014]
[1729008925938,1.55063481,66464.0,66463.0,0.0004]
[1729008926247,1.55063481,66464.0,66463.0,0.0014]
[1729008926443,2.41063481,66464.0,66463.0,0.0014]
[1729008926751,1.55077355,66464.0,66463.0,0.335648]
[1729008926934,1.5507502,66464.0,66463.0,0.335648]
[1729008927136,1.55081077,66464.0,66463.0,0.335648]
[1729008927334,0.92428223,66464.0,66463.0,0.335648]
[1729008927734,0.56348223,66464.0,66463.0,0.335648]
[1729008927937,0.54948223,66464.0,66463.0,0.335648]
[1729008928146,0.56348223,66464.0,66463.0,0.335648]
[1729008928339,0.56348223,66464.0,66463.0,0.336648]
[1729008928736,1.18983481,66464.0,66463.0,0.0014]
[1729008928949,1.88588181,66464.0,66463.0,0.0004]
[1729008929243,1.56463481,66464.0,66459.0,0.26]
[1729008929443,1.56463481,66464.0,66462.0,0.075249]
[1729008929444,0.3608,66463.0,66462.0,0.075249]
[1729008929656,0.36098499,66463.0,66462.0,0.335249]
[1729008929836,0.8545825,66463.0,66462.0,0.335249]
[1729008931343,0.00018499,66463.0,66462.0,0.3768512]
[1729008931543,0.49359751,66464.0,66462.0,0.3768512]
[1729008931745,0.49359751,66464.0,66463.0,0.335648]
[1729008932944,0.50759751,66464.0,66463.0,0.336648]
[1729008933340,0.014,66464.0,66463.0,0.336648]
[1729008933543,0.355,66470.0,66469.0,0.075241]
[1729008933743,0.84859751,66470.0,66469.0,0.335241]
[1729008933944,0.50019751,66470.0,66469.0,0.335641]
[1729008934344,0.49319751,66470.0,66469.0,0.335641]
[1729008934537,0.49319751,66470.0,66469.0,0.35063401]
[1729008934850,0.49319751,66470.0,66469.0,0.35900693]
[1729008934851,0.49519751,66470.0,66469.0,0.35900693]
[1729008935049,0.49519751,66470.0,66469.0,0.34401392]
[1729008935355,0.00149494,66483.0,66469.0,0.66123926]
[1729008935651,0.00533311,66484.0,66482.0,0.6212]
[1729008935851,0.00533311,66484.0,66483.0,0.150926]
[1729008936039,0.00533311,66484.0,66483.0,0.39185904]
[1729008936236,0.37525392,66498.0,66488.0,0.07522]
[1729008936446,0.01445392,66498.0,66488.0,0.45138755]
[1729008936650,0.01445392,66498.0,66488.0,0.07562]
[1729008936854,0.3806909,66489.0,66488.0,0.07562]
[1729008937042,0.86728841,66489.0,66488.0,0.07562]
[1729008937238,1.50782571,66489.0,66488.0,0.07562]
[1729008937539,1.50782571,66489.0,66488.0,0.10228447]
[1729008938036,1.50782571,66489.0,66488.0,0.10328447]
[1729008938548,1.52082571,66489.0,66488.0,0.10428447]
[1729008938737,0.88028841,66489.0,66488.0,0.36428447]
[1729008939737,0.88028841,66489.0,66488.0,0.02906447]
[1729008940040,0.88028841,66489.0,66483.0,0.0004]
[1729008940041,2.12122571,66489.0,66483.0,0.0004]
[1729008940240,0.92262151,66484.0,66483.0,0.0004]
[1729008940452,0.48659751,66483.0,66469.0,0.0004]
[1729008940642,0.84739751,66470.0,66469.0,0.0004]
[1729008941041,1.48793481,66470.0,66469.0,0.0004]
[1729008941242,1.48793481,66470.0,66469.0,0.075641]
[1729008941439,1.48793481,66470.0,66469.0,0.0004]
[1729008941871,1.48793481,66470.0,66469.0,0.075641]
[1729008942050,0.84739751,66470.0,66469.0,0.075641]
[1729008942245,0.84739751,66470.0,66469.0,0.076641]
[1729008942853,0.86139751,66470.0,66469.0,0.077641]
[1729008943055,0.014,66470.0,66469.0,0.077641]
[1729008943248,0.3608,66482.0,66469.0,0.30254221]
[1729008943553,1.0013373,66482.0,66481.0,0.075628]
[1729008943749,1.48793481,66482.0,66481.0,0.075628]
[1729008944059,1.48793481,66482.0,66481.0,0.335628]
[1729008944352,1.48793481,66482.0,66481.0,0.0004]
[1729008944551,1.48793481,66482.0,66481.0,0.075628]
[1729008945349,1.51393481,66482.0,66481.0,0.337628]
[1729008945752,1.51393481,66482.0,66481.0,0.077628]
[1729008945950,1.49993481,66482.0,66481.0,0.076628]
[1729008946153,1.51393481,66482.0,66481.0,0.077628]
[1729008946449,1.51393481,66482.0,66481.0,0.337628]
[1729008946854,1.50193481,66482.0,66481.0,0.336628]
[1729008947058,1.51593481,66482.0,66481.0,0.337628]
[1729008947558,0.0202909,66489.0,66481.0,1.01039571]
[1729008947851,0.0202909,66489.0,66488.0,0.07562]
[1729008948256,0.0202909,66489.0,66488.0,0.15112]
[1729008948866,0.0132909,66489.0,66488.0,0.15112]
[1729008949054,0.0272909,66489.0,66488.0,0.15212]
[1729008949369,0.0272909,66489.0,66488.0,0.15959615]
[1729008949961,0.0272909,66489.0,66488.0,0.18670808]
[1729008950348,0.0282909,66489.0,66488.0,0.18770808]
[1729008951669,0.0282909,66489.0,66488.0,0.44770808]
[1729008951851,0.01456893,66490.0,66489.0,0.075219]
[1729008952160,0.01456893,66490.0,66489.0,0.075619]
[1729008952659,0.01950804,66493.0,66491.0,0.075216]
[1729008952855,0.01950804,66493.0,66492.0,0.075215]
[1729008953054,0.01950804,66493.0,66492.0,0.075615]
[1729008954447,0.01950804,66493.0,66492.0,0.076615]
[1729008954655,0.01950804,66493.0,66492.0,0.077615]
[1729008955853,0.01950804,66493.0,66492.0,0.247615]
[1729008956464,0.49910555,66493.0,66492.0,0.247615]
[1729008956763,0.49910555,66493.0,66492.0,0.25517974]
[1729008957659,1.13964285,66493.0,66492.0,0.0024]
[1729008957962,1.13964285,66493.0,66492.0,0.1724]
[1729008959150,1.13964285,66493.0,66492.0,0.247615]
[1729008960567,1.13964285,66493.0,66492.0,0.1724]
[1729008961856,1.73964285,66493.0,66492.0,0.0024]
[1729008962059,0.0004,66492.0,66469.0,0.1704]
[1729008962365,1.01739751,66470.0,66463.0,0.0004]
[1729008962559,1.01699751,66464.0,66463.0,0.0004]
[1729008962956,1.65713481,66464.0,66463.0,0.0004]
[1729008963759,1.48713481,66464.0,66463.0,0.0004]
[1729008964571,0.84699751,66464.0,66463.0,0.336648]
[1729008964758,0.84699751,66464.0,66463.0,0.337648]
[1729008965067,0.3608,66464.0,66463.0,0.076648]
[1729008965566,0.0004,66470.0,66463.0,0.0024]
[1729008965567,0.3612,66470.0,66463.0,0.0024]
[1729008965762,0.3612,66470.0,66469.0,0.335641]
[1729008966369,0.84739751,66470.0,66469.0,0.335641]
[1729008967261,0.85839751,66470.0,66469.0,0.336641]
[1729008967471,0.85839751,66470.0,66469.0,0.337641]
[1729008967472,0.86039751,66470.0,66469.0,0.337641]
[1729008967663,0.86039751,66470.0,66469.0,0.2624]
[1729008967965,0.86039751,66470.0,66469.0,0.337641]
[1729008968557,0.86039751,66470.0,66469.0,0.35281052]
[1729008968558,0.0134,66470.0,66469.0,0.35281052]
[1729008968764,0.0134,66470.0,66469.0,0.5796663]
[1729008968962,0.0134,66470.0,66469.0,0.7463169]
[1729008969476,0.0114,66470.0,66469.0,0.7453169]
[1729008969656,0.3608,66476.0,66469.0,0.7453169]
[1729008969857,0.0004,66482.0,66480.0,0.075229]
[1729008970167,0.0004,66482.0,66475.0,0.0004]
[1729008970371,0.0004,66482.0,66481.0,0.335628]
[1729008970964,0.0024,66482.0,66481.0,0.335628]
[1729008971162,0.0164,66482.0,66481.0,0.35084103]
[1729008971464,0.0144,66482.0,66481.0,0.37799893]
[1729008971671,0.50259751,66482.0,66481.0,0.11899893]
[1729008971858,1.40273481,66482.0,66481.0,0.04377093]
[1729008972170,1.40273481,66482.0,66475.0,0.0004]
[1729008972171,0.075232,66478.0,66475.0,0.0004]
[1729008972354,0.075238,66472.0,66469.0,0.0004]
[1729008972555,1.10739751,66476.0,66460.0,0.00769743]
[1729008972556,1.18223751,66470.0,66460.0,0.00769743]
[1729008972765,1.18223751,66470.0,66455.0,0.150656]
[1729008972766,1.10699751,66464.0,66456.0,0.075256]
[1729008973067,1.10699751,66464.0,66459.0,0.02733403]
[1729008973259,1.74713481,66464.0,66459.0,0.02733403]
[1729008973565,1.48713481,66464.0,66463.0,0.01562761]
[1729008973776,1.48713481,66464.0,66463.0,0.0004]
[1729008973962,1.48713481,66464.0,66463.0,0.01562953]
[1729008974269,1.48713481,66464.0,66463.0,0.01665716]
[1729008974481,1.48713481,66464.0,66463.0,0.0014]
[1729008974768,1.48713481,66464.0,66463.0,0.0004]
[1729008974957,1.48713481,66464.0,66463.0,0.0014]
[1729008975152,1.48713481,66464.0,66463.0,0.01665869]
[1729008975366,1.48713481,66464.0,66463.0,0.27667824]
[1729008975663,1.48713481,66464.0,66463.0,0.35192624]
[1729008976071,1.49313481,66464.0,66463.0,0.01767824]
[1729008976774,1.48713481,66464.0,66463.0,0.01567824]
[1729008976961,1.50713481,66464.0,66463.0,0.01767824]
[1729008977162,1.50713481,66464.0,66463.0,0.0024]
[1729008977968,0.3808,66464.0,66463.0,0.2624]
[1729008978260,0.3808,66464.0,66463.0,0.35292074]
[1729008978460,0.3808,66464.0,66463.0,0.2777267]
[1729008978961,0.3808,66464.0,66463.0,0.3529747]
[1729008979172,0.3808,66464.0,66463.0,0.2777267]
[1729008979869,0.3808,66464.0,66463.0,0.2767267]
[1729008980271,1.50713481,66464.0,66463.0,0.0014]
[1729008980563,1.58238181,66464.0,66463.0,0.0014]
[1729008981561,1.50713481,66464.0,66463.0,0.0014]
[1729008981964,1.50713481,66464.0,66463.0,0.336648]
[1729008982370,0.3808,66464.0,66463.0,0.336648]
[1729008982566,0.0004,66470.0,66469.0,0.075241]
[1729008982871,0.0004,66470.0,66469.0,0.335241]
[1729008983070,0.0004,66470.0,66469.0,0.335641]
[1729008983476,0.0004,66470.0,66469.0,0.35089878]
[1729008983678,0.0004,66476.0,66475.0,0.075235]
[1729008983868,0.0004,66476.0,66475.0,0.335635]
[1729008984459,0.0004,66476.0,66475.0,0.35091844]
[1729008984966,1.12673481,66476.0,66475.0,0.0004]
[1729008985571,1.20196781,66476.0,66475.0,0.0004]
[1729008986077,1.20196781,66476.0,66465.0,0.16377569]
[1729008986078,1.38368,66476.0,66451.0,0.3608]
[1729008986275,1.38368,66476.0,66449.0,0.0004]
[1729008986276,0.075262,66451.0,66450.0,0.07415327]
[1729008986471,0.27661568,66450.0,66449.0,0.07455327]
[1729008986678,0.53661568,66450.0,66449.0,0.0004]
[1729008986890,1.08785069,66450.0,66449.0,0.0004]
[1729008987076,0.82785069,66450.0,66449.0,0.075664]
[1729008988180,0.82785069,66450.0,66449.0,0.0004]
[1729008988680,1.08785069,66450.0,66449.0,0.0004]
[1729008988871,1.16311369,66450.0,66449.0,0.0004]
[1729008989066,1.16311369,66450.0,66440.0,0.3608]
[1729008989067,1.08785069,66450.0,66440.0,0.3608]
[1729008989272,1.08785069,66450.0,66438.0,0.02770819]
[1729008989273,0.075274,66440.0,66438.0,0.02770819]
[1729008989686,0.075274,66440.0,66431.0,0.0004]
[1729008989687,0.90455069,66440.0,66431.0,0.0004]
[1729008989874,0.63741568,66432.0,66431.0,0.0004]
[1729008990375,0.82785069,66432.0,66431.0,0.2604]
[1729008990574,0.27661568,66432.0,66431.0,0.2604]